Cogmind - Beta 16 @@@ ROGUE MODE // 2025.10.27 @ 15:11:21 Player: Razzon Result: Destroyed by EW-19N(j) with Overtuned Pulse Rifle Performance ------------- Evolutions (0) 0 Regions Visited (4) 800 Robots Destroyed (7) 35 Value Destroyed (259) 259 Prototype IDs (7) 140 Alien Tech Used (0) 0 Bonus (784) 784 TOTAL SCORE: 2018 Bonus ------- Registered with UFD 300 Met Optimus in HQ 500 Friendly Fire -16 Cogmind --------- Core Integrity 0/250 Matter 300/300 Energy 99/100 System Corruption 2% Temperature Warm (174) Movement Core (50) Location -7/Scraptown Parts ------- > --- POWER (1) -------- (None) > --- PROPULSION (2) --- (None) > --- UTILITY (2) ------ (None) > --- WEAPON (2) ------- (None) > --- INVENTORY (5) ---- Aluminum Leg Compact Wheel Targeting Computer Shield Generator DRS Beacon (Ready) Peak State ------------ > --- POWER ------------ Nuclear Core > --- PROPULSION ------- Armored Huge Wheel > --- UTILITY ---------- Improved Heat Sink Small Storage Unit > --- WEAPON ----------- Particle Gun Ion Cannon > --- INVENTORY -------- Ion Engine Aluminum Leg Aluminum Leg Compact Wheel Targeting Computer Shield Generator EM Pulse Gun Makeshift Sword [Rating: 21] Favorites ----------- Power Ion Engine Engine Ion Engine Power Core Nuclear Core Propulsion Aluminum Leg Leg Aluminum Leg Wheel Armored Huge Wheel Utility Small Storage Unit Device Improved Heat Sink Storage Small Storage Unit Weapon EM Pulse Gun Energy Gun EM Pulse Gun Energy Cannon Ion Cannon Build | -11 -10 -10 -10 -7 ------- Run | Yrd Mat Min Sub Scr Slots Evolved . | . . . . . Power . | . . . . . Propulsion . | . . . . . Utility . | . . . . . Weapon . | . . . . . Parts Attached 13 | 6 1 1 1 4 Power 2 | 1 . . . 1 Engine 1 | 1 . . . . Core 1 | . . . . 1 Reactor . | . . . . . Propulsion 3 | 2 . . . 1 Treads . | . . . . . Leg 2 | 2 . . . . Wheel 1 | . . . . 1 Hover . | . . . . . Flight . | . . . . . Utility 4 | 1 1 1 . 1 Device 3 | . 1 1 . 1 Storage 1 | 1 . . . . Processor . | . . . . . Hackware . | . . . . . Protection . | . . . . . Artifact . | . . . . . Weapon 4 | 2 . . 1 1 Energy Gun 3 | 2 . . 1 . Energy Cannon 1 | . . . . 1 Ballistic Gun . | . . . . . Ballistic Cannon . | . . . . . Launcher . | . . . . . Special Weapon . | . . . . . Impact Weapon . | . . . . . Slashing Weapon . | . . . . . Piercing Weapon . | . . . . . Special Melee Weapon . | . . . . . Unidentified Prototypes . | . . . . . Parts Lost 6 | . . . 1 5 Power 1 | . . . . 1 Propulsion 1 | . . . . 1 Utility 1 | . . . . 1 Weapon 3 | . . . 1 2 Highest Loss Streak 5 | . . . 1 5 To Critical Strikes . | . . . . . Average Backups 7 | 3 6 7 7 7 Power . | . 1 1 1 1 Propulsion 3 | 3 4 4 3 2 Utility 1 | . . 1 1 2 Weapon 1 | . 1 1 2 2 Tool/Special . | . . . . . Unused Backups 12 | . 1 1 1 9 Power 1 | . . . . 1 Propulsion 6 | . 1 1 1 3 Utility 3 | . . . . 3 Weapon 2 | . . . . 2 Tool/Special . | . . . . . Average Slot Usage (%) 89 | . 91 100 100 86 Engine 9 | . 14 14 14 6 Core 4 | . . . . 7 Leg 10 | . 28 28 28 2 Wheel 8 | . . . . 12 Device 12 | . 6 14 14 13 Storage 14 | . 14 14 14 14 Energy Gun 21 | . 28 28 28 18 Energy Cannon 6 | . . . . 9 Peak Build Rating 21 | 6 9 10 11 21 Average Rating 15 | 4 7 9 10 18 On Entrance 7 | . 6 9 10 11 Avg Prop Armor Cover (%) . | . . . . . Naked Turns 2 | . . . . 2 Heaviest Build 22 | 14 15 15 16 22 Greatest Support 28 | 20 20 20 20 28 Greatest Overweight (x) . | . . . . . Average Overweight (x) . | . . . . . Largest Inventory Capacity 8 | 8 8 8 8 8 Average Capacity 7 | 6 8 8 8 7 Most Carried 8 | 6 8 8 8 8 Average Carried 7 | 4 6 7 7 7 Final Capacity 8 | 8 8 8 8 5 Final Carried 8 | 6 7 8 8 5 Class Distribution -------------------- 100% | Mutant Dominant Class ---------------- Mutant | -10/Materials Mutant | -10/Mines Mutant | -10/Subcaves Mutant | -7/Scraptown Resources | -11 -10 -10 -10 -7 ----------- Run | Yrd Mat Min Sub Scr Matter Collected 340 | 201 68 31 10 30 Remotely . | . . . . . Salvage Created 366 | . 132 96 138 . Parts 10 | . 3 4 3 . Haulers Intercepted . | . . . . . Recyclers Shooed . | . . . . . Parts Field Recycled . | . . . . . Retrieved Matter . | . . . . . Parts Self-Destructed . | . . . . . Prevented 1 | . . . 1 . Parts Restored . | . . . . . Kills | -11 -10 -10 -10 -7 ------- Run | Yrd Mat Min Sub Scr Combat Hostiles Destroyed 6 | . 2 2 2 . Guns 4 | . 1 2 1 . AOE 2 | . 1 . 1 . Classes Destroyed 2 | . 2 . . . Watcher 1 | . 1 . . . Grunt 6 | . 2 2 2 . Best Kill Streak 3 | . 3 2 2 . Combat Bots Only 2 | . 2 2 2 . Max Kills in Single Turn 2 | . 2 1 1 . Gunslinging . | . . . . . Exploded 1 | . 1 . 1 . Melee . | . . . . . Uniques/NPCs Destroyed . | . . . . . Combat | -11 -10 -10 -10 -7 -------- Run | Yrd Mat Min Sub Scr Hostile Shots Fired 81 | . 10 6 7 58 Missed 18 | . 3 2 . 13 Hits 63 | . 7 4 7 45 Projectile 63 | . 7 4 7 45 Critical Strikes 8 | . . . . 8 Damage Taken 867 | . 113 85 112 557 Core 251 | . 23 18 50 160 Absorbed by Shields . | . . . . . Core Remaining (%) 100 | 100 . . . . Volleys Fired 34 | . 10 6 13 5 Largest 2 | . 2 2 2 2 Hottest 125 | . 80 80 105 125 Shots Fired 67 | . 20 12 25 10 Gun 62 | . 20 12 25 5 Cannon 5 | . . . . 5 Launcher . | . . . . . Special . | . . . . . Kinetic . | . . . . . Thermal 11 | . . . 1 10 Explosive . | . . . . . Electromagnetic 56 | . 20 12 24 . Robot Hit Streak 13 | . 5 5 13 11 Robot Miss Streak 8 | . 8 1 1 5 Penetration Max . | . . . . . Secondary Targets . | . . . . . Shots Hit Robots 44 | . 10 9 21 4 Core Hits 19 | . 6 5 7 1 Critical Kills . | . . . . . Critical Parts Destroyed . | . . . . . Critical Strikes . | . . . . . Melee Attacks . | . . . . . Impact . | . . . . . Slashing . | . . . . . Piercing . | . . . . . Sneak Attacks . | . . . . . Combat Hostiles . | . . . . . Follow-up Attacks . | . . . . . Damage Inflicted 748 | . 165 152 340 91 Guns 521 | . 118 118 242 43 Cannons 48 | . . . . 48 Explosions 179 | . 47 34 98 . Melee . | . . . . . Ramming . | . . . . . Kinetic . | . . . . . Thermal 270 | . 47 34 98 91 Explosive . | . . . . . Electromagnetic 478 | . 118 118 242 . Impact . | . . . . . Slashing . | . . . . . Piercing . | . . . . . Highest Corruption 2 | . . . . 2 Average Corruption 1 | . . . . 1 Corruption Purged . | . . . . . Corruption Blocked . | . . . . . Effects 1 | . . . . 1 Matter Fused 1 | . . . . 1 Overload Shots . | . . . . . Overflow Damage 2 | . . . . 2 Projectiles 2 | . . . . 2 Explosions . | . . . . . Melee . | . . . . . Knockbacks . | . . . . . Impact . | . . . . . Kinetic . | . . . . . Secondary . | . . . . . Self-Inflicted Damage 79 | . 23 35 21 . Shots 3 | . 1 1 1 . Rammed . | . . . . . Targets Rammed . | . . . . . Kicked . | . . . . . Crushed . | . . . . . Highest Temperature 302 | . 171 4 . 302 Average Temperature 96 | . 63 2 . 155 Received Heat Transfer 317 | . 51 27 51 188 Siege Activations . | . . . . . Martial Activations . | . . . . . Shielding Activations . | . . . . . Robots Disrupted . | . . . . . Combat Hostiles . | . . . . . Robots Corrupted 1 | . . . 1 . Combat Hostiles 1 | . . . 1 . Parts Fried 2 | . . 1 1 . Impact Corruptions . | . . . . . Robots Melted . | . . . . . Combat Hostiles . | . . . . . Parts Melted . | . . . . . Heat Transferred 473 | . 100 50 150 173 Parts Sabotaged . | . . . . . Parts Stolen . | . . . . . Parts Stripped . | . . . . . Power Chain Reactions 3 | . 1 1 1 . Alert | -11 -10 -10 -10 -7 ------- Run | Yrd Mat Min Sub Scr Maximum Alert Level . | . . . . . Low Security (%) 100 | 100 100 100 . . Level 1 . | . . . . . Level 2 . | . . . . . Level 3 . | . . . . . Level 4 . | . . . . . Level 5 . | . . . . . High Security . | . . . . . Max Security . | . . . . . Peak Influence 63 | . 63 44 . . Initial . | . . . . . Average 13 | . 14 18 . . Influence Increases 167 | . 63 54 50 . Destroy 0b10 Robot/C 120 | . 40 40 40 . Destroy 0b10 Robot/NC 5 | . 5 . . . Destroy Leader 32 | . 12 10 10 . Destroy Structure 10 | . 6 4 . . Influence Decreases 167 | . 63 54 50 . Time Decay 157 | . 63 54 40 . Lost Part 10 | . . . 10 . Squads Dispatched . | . . . . . Investigation . | . . . . . Extermination . | . . . . . Reinforcement . | . . . . . Assault . | . . . . . Garrison . | . . . . . Intercept . | . . . . . Searches Triggered . | . . . . . Construction Impeded . | . . . . . Haulers Reinforced . | . . . . . Active Scanning Responses . | . . . . . Cargo Convoy Interrupts . | . . . . . Stealth | -11 -10 -10 -10 -7 --------- Run | Yrd Mat Min Sub Scr Distress Signals . | . . . . . Communications Jammed . | . . . . . Distress Signals . | . . . . . Times Spotted 26 | . 4 4 2 16 Peak Tracking Total 8 | . 3 2 2 8 Tactical Retreats . | . . . . . Traps | -11 -10 -10 -10 -7 ------- Run | Yrd Mat Min Sub Scr Traps Triggered 1 | . 1 . . . Indirectly . | . . . . . Trap Hack Attempts . | . . . . . Triggered . | . . . . . Disarmed . | . . . . . Reprogrammed . | . . . . . Reused . | . . . . . Traps Extracted . | . . . . . Installed . | . . . . . Triggered . | . . . . . Machines | -11 -10 -10 -10 -7 ---------- Run | Yrd Mat Min Sub Scr Machines Disabled . | . . . . . Max in Single Turn . | . . . . . Machines Repaired . | . . . . . Machines Dismantled . | . . . . . Machines Sabotaged . | . . . . . Overloaded Fab Kills . | . . . . . Hacking | -11 -10 -10 -10 -7 --------- Run | Yrd Mat Min Sub Scr Machines Accessed 12 | . 2 . . 10 Terminals 2 | . 2 . . . Fabricators . | . . . . . Repair Stations . | . . . . . Recycling Units . | . . . . . Scanalyzers . | . . . . . Garrison Access . | . . . . . Total Hacks 47 | . 5 . . 42 Successful 42 | . . . . 42 Failed 5 | . 5 . . . Catastrophic 1 | . 1 . . . Database Lockouts . | . . . . . Manual . | . . . . . Terminals 5 | . 5 . . . Fabricators . | . . . . . Repair Stations . | . . . . . Recycling Units . | . . . . . Scanalyzers . | . . . . . Garrison Access . | . . . . . Terminal Hacks 42 | . . . . 42 Record 41 | . . . . 41 Proto ID Catalog 1 | . . . . 1 Fabricator Hacks . | . . . . . Repair Station Hacks . | . . . . . Recycling Unit Hacks . | . . . . . Scanalyzer . | . . . . . Garrison Access Hacks . | . . . . . Unauthorized Hacks . | . . . . . Terminals . | . . . . . Fabricators . | . . . . . Repair Stations . | . . . . . Recycling Units . | . . . . . Scanalyzers . | . . . . . Garrison Access . | . . . . . Data Cores Recovered . | . . . . . Used . | . . . . . Hacking Detections 2 | . 2 . . . Full Trace Events . | . . . . . Feedback Events . | . . . . . Feedback Blocked . | . . . . . Robot Schematics Acquired . | . . . . . Robots Built . | . . . . . Authchips . | . . . . . Time . | . . . . . Total Robot Build Rating . | . . . . . Part Schematics Acquired . | . . . . . Parts Built . | . . . . . Authchips . | . . . . . Time . | . . . . . Total Part Build Rating . | . . . . . Part Studies Acquired . | . . . . . Parts Repaired . | . . . . . Time . | . . . . . Parts Recycled . | . . . . . Recycled Matter . | . . . . . Retrieved Matter . | . . . . . Retrieved Components . | . . . . . Parts Scanalyzed . | . . . . . Part Schematics Acquired . | . . . . . Parts Damaged . | . . . . . Bothacking | -11 -10 -10 -10 -7 ------------ Run | Yrd Mat Min Sub Scr Used RIF Installer . | . . . . . Robots Hacked . | . . . . . Non-combat . | . . . . . Combat . | . . . . . Robot Hacks Applied . | . . . . . Relay Couplers Released . | . . . . . Fabnet Peak Effective % . | . . . . . Robots Rewired . | . . . . . Allies Hacked . | . . . . . Hacks Repelled . | . . . . . Allies | -11 -10 -10 -10 -7 -------- Run | Yrd Mat Min Sub Scr Total Allies . | . . . . . Largest Group . | . . . . . Highest-Rated Group . | . . . . . Highest-Rated Ally . | . . . . . Total Orders . | . . . . . Ally Attacks . | . . . . . Total Damage . | . . . . . Kills . | . . . . . Allies Corrupted . | . . . . . Allies Melted 1 | . . . . 1 Intel | -11 -10 -10 -10 -7 ------- Run | Yrd Mat Min Sub Scr Active Infowar (turns) . | . . . . . Robot Analysis Total . | . . . . . Derelict Logs Recovered 1 | . . 1 . . Drone Launches . | . . . . . Drone Recoveries . | . . . . . Exploration | -11 -10 -10 -10 -7 ------------- Run | Yrd Mat Min Sub Scr Turns Passed 2543 | 67 285 150 308 1733 Spaces Moved 2237 | 45 203 107 218 1664 Core 6 | 2 . . . 4 Treads . | . . . . . Legs 702 | 43 203 107 218 131 Wheels 1529 | . . . . 1529 Hover . | . . . . . Flight . | . . . . . Fastest Speed 50 | 50 120 120 120 50 Average Speed 106 | 116 120 120 120 101 Slowest Speed 120 | 120 120 120 120 120 Overloaded Moves . | . . . . . Propulsion Burnouts . | . . . . . Robots Hopped . | . . . . . Potential Cave-ins . | . . . . . Cave-ins Triggered . | . . . . . Exploration Rate (%) 33 | 3 27 27 20 90 Regions Visited 4 Branch Regions 3 Pre-discovered Areas 1 | . . . . 1 Known Exits Taken . | . . . . . Unknown Exits Taken 4 | 1 1 1 1 . Scrap Searched 4 | . . . . 4 Spaces Dug . | . . . . . Terrain Destroyed 15 | . 6 4 4 1 Melee . | . . . . . Projectile 1 | . . . . 1 AOE 14 | . 6 4 4 . Terrain Rammed . | . . . . . Walls Destroyed . | . . . . . Machines Disabled . | . . . . . Actions | -11 -10 -10 -10 -7 --------- Run | Yrd Mat Min Sub Scr Total 2336 | 57 223 117 239 1700 Wait 29 | . 5 . 6 18 Move 2233 | 44 202 106 217 1664 Hop . | . . . . . Pick Up 15 | 7 2 2 1 3 Fast Attach 11 | 5 3 . 1 2 Attach 1 | 1 . . . . Detach . | . . . . . Swap 3 | . . 1 . 2 Drop 10 | . 1 2 1 6 Fire 34 | . 10 6 13 5 Melee . | . . . . . Ram . | . . . . . Kick . | . . . . . Crush . | . . . . . Escape Stasis . | . . . . . Rewire . | . . . . . Trap . | . . . . . Miscellaneous . | . . . . . Route ------- -11/Scrapyard -10/Materials -10/Mines -10/Subcaves -7/Scraptown (discovered 1 exit: [*Fac]) History --------- Turn | Location | Event 16 | -11/Scrapyard | Discovered new exit (range 15) 68 | -11/Scrapyard | Entered Materials 254 | -10/Materials | Discovered new exit (range 16) 320 | -10/Materials | Build established: Mutant 353 | -10/Materials | Entered Mines 427 | -10/Mines | Learned Materials terminal intel 469 | -10/Mines | Assembled infested the area 483 | -10/Mines | A weapon hastily lodged in a ceiling crevice suddenly fell to the ground 497 | -10/Mines | Discovered new exit (range 6) 503 | -10/Mines | Entered Subcaves 504 | -10/Subcaves | Approached by a straggling Scientist 741 | -10/Subcaves | Scientist uncovered a shortcut to Scraptown 811 | -10/Subcaves | Entered Scraptown 995 | -7/Scraptown | Visited SPCMW 1032 | -7/Scraptown | Visited Fellowship of the Rings 1059 | -7/Scraptown | Visited Comm Corps 1093 | -7/Scraptown | Heard Great Nut preacher, LISTEN AND RECITE! 1101 | -7/Scraptown | Visited Cave Peace 1311 | -7/Scraptown | Discovered new exit (range 5) 1467 | -7/Scraptown | Visited UFD Registry 1479 | -7/Scraptown | Visited TADAMA 1541 | -7/Scraptown | Visited Cyclists 1582 | -7/Scraptown | Visited Shadow of the Wyrm 1808 | -7/Scraptown | Registered with UFD as "Carbonwarp" 1843 | -7/Scraptown | Visited Derelict Rescue Squad 1850 | -7/Scraptown | Found DRS Beacon 1883 | -7/Scraptown | Visited Research Penetration Think Tank 1908 | -7/Scraptown | Visited Curators Association 1950 | -7/Scraptown | Visited Scrap Suit Storage 1994 | -7/Scraptown | Visited Sword Containment 2011 | -7/Scraptown | Visited DA-N13 Charitable Foundation 2037 | -7/Scraptown | Visited Abandonware Association 2044 | -7/Scraptown | Learned abandonware demo "OVRCLOCK.EXE" 2052 | -7/Scraptown | Learned abandonware demo "ERRANTS.EXE" 2052 | -7/Scraptown | Learned abandonware demo "POISON.EXE" 2079 | -7/Scraptown | Visited LU-1G1's Boring Crew 2133 | -7/Scraptown | Visited Science Guys 2380 | -7/Scraptown | Met Optimus 2380 | -7/Scraptown | Accepted into 0bPrime 2490 | -7/Scraptown | Civil war broke out across Scraptown 2514 | -7/Scraptown | Core integrity fell below 50% 2542 | -7/Scraptown | Released all parts (2) 2543 | -7/Scraptown | Core integrity fell below 20% 2544 | -7/Scraptown | Destroyed by EW-19N(j) with Overtuned Pulse Rifle Last Messages --------------- 02532_ Slug penetrates RK-QW0(h). 02532_ RK-QW0(h) destroyed. 02532_ HV Slug penetrates Optimus. 02534_ Bolt penetrates Optimus. 02535_ Critical hit (Burn: +50). 02535_ HV Slug penetrates Optimus. 02538_ Acquired Mak. Microdissipator Network. 02538_ Arm. Huge Wheel destroyed. 02538_ Critical hit (Burn: +37). 02538_ HV Slug penetrates Optimus. 02539_ Bolt penetrates Optimus. 02540_ Ion Cannon destroyed. 02541_ Particle Gun melts away. 02541_ System corrupted: Matter fused (-5). 02541_ HV Slug penetrates Optimus. 02541_ Nuclear Core destroyed. 02542_ Released Sml. Storage Unit. 02542_ Released Mak. Microdissipator Network. 02544_ Bolt penetrates Optimus. [Achievement: This Is Interesting...] Map ----- +----------------------------------------------------+ | " #???#########??# #????#" "!""#??? | | " #???# #??# #????#""" """"#??? | | # #???# "" "" #??# """"" #????#"""" ""#??? | | # #???# ""X"" #??# """"" #????#"" #??? | | # #???# """"" #??# """"" #????#"" "" " #??? | | #???# """ #??# #????#"" "" "&#??? | | #???# " #??# #????# "#??? | | # #???# #??# #????#" #??? | | #???# #??# #????######### ###??? | | # ########## ##########" ####???????##### ###### | | j #???????#"""" """""" | | = #???????#" | | !%= #???????#" | | j #???????#" | | #???????#" | | #### ############ #???#####" | | ## #?#= #???#"""" """"" | | ##" "#?#%* p #???#"""" """"" | | ##" "###### "#?#= #???#"""" ""### | | ##" #????#" "#?# #???#"""" ""# | | ##" "#????#" "#?# #???#"""" ""# | | ##" "#????# "#?# /[!###?#"""" ""# | | ##" "###+## "#?# !*![""#"#"""" ""# | | ##" "#?# ==%""""#"""" ""# | | ##""""""""""""#?# !%""#######" "" | | ###############?# @ !###?????#" "" | | #???????????????# #########" ""# | | #???????????????# !%! ""# | | #???????????????# = ""# | | #??????????????#;[ [% ""# | | #??????????????##%= ""# | | #################!= TT ""### | | TT """"" | | / """"" | | /%= % | | %!! ! | | ! 3 | | = #""""#" | | !*%= #????#" | | =%!%! #????#"""""" """" | | ######## ############"#%=[# ####????####### #### | | # #????# *= ## #????????????"""""?? | | #" "#????# = ## #?????????? | | #" X#????# ## #????????# | | #" "#????# ## #????????# """" | | ### ########????# ## #????????# ###### | | ??#"#???????????#" "## #????????#" ?????? | | ?? ???????????## " " ### #????????#"" ?????? | | ?X ????????????# # # #?# #????????#""""?????? | | # X "???????????########?# #??????????"""?????? | +----------------------------------------------------+ Best States ------------- Heat Dissipation 39 Energy Generation 14 Energy Capacity 250 Matter Stores 300 Matter Capacity 300 Sight Range 16 Terrain Scan Density 10 Evasion (%) 55 Item Schematics ----------------- None Robot Schematics ------------------ None Fabricated ------------ Nothing Repaired ---------- Nothing Studied --------- None Alien Tech Used ----------------- None Achievements -------------- Civilization 2243 Link The Feds Nice Directions, Buddy This Is Interesting... Challenges ------------ None Game ------ Seed MediumThrusterAutocannon Manual? 0 Play Time 00:34:10 Cumulative 33.1 hours Start 2025.10.27 @ 14:33:54 End 2025.10.27 @ 15:11:21 Sessions 1 Manual Loads 0 Difficulty Rogue Special Mode None Game No. 34 Rogue 34 Adventurer 0 Explorer 0 Win Type - Total 0 Types 0/0/0/0/0/0/0/0/0/0 Lore% 28 Gallery% 29 Achievement% 17 Wizard Run 0 Options --------- Layout 0 ASCII 0 Keyboard 1 Movement Numpad Keybinds 0 Fullscreen 1 Font 18/SmallcapsGlow Map View 76x50 Zoom Use 0% Tactical HUD 1 Map Filters NONE Filters NONE Steam 1 RUN: 0175bfd4-b43c-44b8-b72f-02a2907ca80f